bitfinex/quotes_SOLUSD_20240624
["timestamp","ask_amount","ask_price","bid_price","bid_amount"]
[1719256604015,15.2066,129.11,129.06,7.7481]
[1719256605516,15.2066,129.11,129.0,68.9976]
[1719256605517,22.9523,129.11,128.99,17.13986514]
[1719256605710,0.34,129.1,129.02,7.7506]
[1719256605908,0.17,129.1,129.0,38.7579]
[1719256606111,15.2066,129.11,129.05,19.3721]
[1719256606315,15.2066,129.11,129.04,7.7493]
[1719256606510,0.17,129.1,129.03,37.9899]
[1719256606803,15.2066,129.11,129.04,52.7494]
[1719256607406,15.2066,129.11,129.04,45.0]
[1719256607999,15.2066,129.11,129.02,27.1259]
[1719256608201,0.17,129.1,129.03,52.75]
[1719256608632,0.17,129.1,129.03,45.0]
[1719256608803,0.17,129.1,129.03,52.7499]
[1719256609199,0.17,129.1,129.04,7.7495]
[1719256609423,0.17,129.1,129.03,52.75]
[1719256609621,0.17,129.1,129.03,45.0]
[1719256609927,0.17,129.1,129.03,52.7499]
[1719256610410,0.17,129.1,129.03,45.0]
[1719256611041,0.17,129.1,129.03,52.7498]
[1719256611402,0.17,129.1,129.03,45.0]
[1719256611834,0.17,129.1,128.99,26.72204159]
[1719256611835,22.0819,129.09,128.99,26.72204159]
[1719256612016,0.34,129.08,128.99,30.24]
[1719256612528,0.34,129.08,128.99,37.9924]
[1719256613435,0.34,129.08,128.99,30.24]
[1719256614013,0.34,129.08,129.0,7.7517]
[1719256614318,0.17,129.08,129.01,52.7513]
[1719256614522,0.17,129.08,129.01,45.0]
[1719256615641,0.34,129.08,128.99,30.24]
[1719256615833,0.34,129.08,129.0,45.0]
[1719256616340,0.34,129.08,129.0,52.7518]
[1719256616711,15.0897,129.07,128.99,49.6212]
[1719256617032,0.17,129.06,128.99,57.3733]
[1719256617938,0.17,129.06,128.96,26.64608514]
[1719256617939,6.5876,129.05,128.96,26.64608514]
[1719256618135,6.5876,129.05,128.98,7.7527]
[1719256618743,6.5876,129.05,128.97,7.7535]
[1719256618913,0.17,129.04,128.97,7.7535]
[1719256620430,0.17,129.04,128.96,30.24]
[1719256620431,16.5278,129.03,128.96,30.24]
[1719256620734,16.5278,129.03,128.96,37.9942]
[1719256621032,16.5278,129.03,128.97,27.137]
[1719256621626,16.5278,129.03,128.97,19.3835]
[1719256621822,16.1325,129.01,128.9,46.28027408]
[1719256622139,0.17,129.0,128.91,27.1489]
[1719256622320,6.366,128.99,128.9,37.9975]
[1719256622638,6.366,128.99,128.87,406.9278]
[1719256622639,16.0243,128.97,128.87,398.1592]
[1719256622839,16.0243,128.97,128.91,25.99]
[1719256623513,0.17,128.96,128.91,25.99]
[1719256623714,16.0243,128.97,128.94,25.99]
[1719256624835,16.0243,128.97,128.94,7.7555]
[1719256625047,16.0243,128.97,128.93,19.3901]
[1719256625339,16.0243,128.97,128.92,30.31]
[1719256625534,16.0243,128.97,128.93,7.7561]
[1719256625739,6.3707,129.02,128.91,23.26]
[1719256626056,15.1461,129.04,128.92,75.63572022]
[1719256626333,15.1461,129.04,128.93,30.31]
[1719256626667,15.1461,129.04,128.94,45.0]
[1719256627142,15.5831,129.02,128.93,30.31]
[1719256627315,0.17,129.01,128.91,19.3929]
[1719256627517,6.3109,129.0,128.91,19.3929]
[1719256628718,6.3109,129.0,128.94,7.7554]
[1719256628937,6.3109,129.0,128.93,27.1458]
[1719256629840,6.3109,129.0,128.94,7.7554]
[1719256630023,6.3109,129.0,128.92,30.31]
[1719256630024,6.3109,129.0,128.95,19.387]
[1719256630225,6.3109,129.0,128.95,27.1417]
[1719256630623,0.17,128.99,128.9,7.7577]
[1719256630817,6.3109,129.0,128.91,39.393]
[1719256631016,6.3109,129.0,128.92,7.7563]
[1719256631739,6.3109,129.0,128.93,7.7561]
[1719256632039,6.3109,129.0,128.93,45.0]
[1719256632236,6.3109,129.0,128.92,45.0]
[1719256632434,0.17,128.99,128.91,47.1499]
[1719256632644,0.17,128.99,128.92,7.7566]
[1719256632842,6.3109,129.0,128.93,7.7559]
[1719256633227,6.3109,129.0,128.91,39.393]
[1719256634030,6.3109,129.0,128.92,45.0]
[1719256634421,0.17,129.01,128.83,38.809]
[1719256634422,15.2731,128.97,128.83,38.809]
[1719256634623,6.5386,128.94,128.77,45.0568]
[1719256634821,6.5386,128.94,128.81,49.717]
[1719256634822,0.17,128.93,128.81,49.717]
[1719256635027,0.34,128.93,128.81,49.717]
[1719256635643,6.4667,128.87,128.77,31.043645]
[1719256635852,52.7604,128.86,128.77,31.043645]
[1719256636140,45.34,128.86,128.77,31.043645]
[1719256636340,22.8004,128.85,128.77,31.043645]
[1719256636644,22.8004,128.85,128.77,38.809345]
[1719256636837,22.8004,128.85,128.78,7.7651]
[1719256637037,22.8004,128.85,128.77,50.457045]
[1719256637233,0.17,128.84,128.77,31.043645]
[1719256637542,0.34,128.84,128.77,31.043645]
[1719256638053,0.17,128.84,128.77,31.043645]
[1719256638632,0.17,128.84,128.76,27.182]
[1719256639055,0.17,128.84,128.71,7.45555283]
[1719256639259,45.34,128.84,128.7,30.31]
[1719256639435,45.34,128.84,128.71,39.4226]
[1719256639851,45.34,128.84,128.71,20.0]
[1719256640159,45.34,128.84,128.71,27.7692]
[1719256640361,53.1015,128.84,128.72,7.7687]
[1719256640558,45.34,128.84,128.72,7.7687]
[1719256641048,45.34,128.84,128.73,7.768]
[1719256641243,45.34,128.84,128.72,27.1896]
[1719256641448,0.34,128.84,128.72,19.421]
[1719256641638,22.8004,128.85,128.77,7.7657]
[1719256641839,22.8004,128.85,128.74,49.7284]
[1719256642139,22.8004,128.85,128.71,16.926422]
[1719256642443,22.8004,128.85,128.72,45.0]
[1719256642642,22.8004,128.85,128.73,0.17]
[1719256642839,0.17,128.84,128.72,45.0]
[1719256643054,0.17,128.84,128.71,16.926422]
[1719256643055,45.34,128.84,128.71,16.926422]
[1719256643252,53.1017,128.84,128.7,19.4243]
[1719256644145,45.34,128.84,128.73,7.7677]
[1719256644545,45.34,128.84,128.72,19.4211]
[1719256644743,45.34,128.84,128.73,45.0]
[1719256644966,45.34,128.84,128.74,7.7675]
[1719256645256,6.4091,128.83,128.69,80.24626661]
[1719256645460,0.34,128.82,128.72,7.7687]
[1719256645664,15.0925,128.81,128.71,19.4232]
[1719256645841,0.34,128.8,128.71,19.4232]
[1719256646044,6.4091,128.79,128.66,390.4]
[1719256646241,6.4091,128.79,128.68,7.7706]
[1719256646441,0.17,128.78,128.68,7.7706]
[1719256646662,21.685,128.77,128.68,7.7711]
[1719256646852,0.17,128.76,128.67,19.428]
[1719256647242,0.17,128.76,128.67,27.1994]
[1719256647447,21.685,128.77,128.67,19.428]
[1719256647663,21.685,128.77,128.69,7.7704]
[1719256647958,21.685,128.77,128.69,19.4261]
[1719256648553,21.685,128.77,128.71,7.769]
[1719256649253,6.1756,128.77,128.72,52.7687]
[1719256649451,6.1756,128.77,128.73,7.768]
[1719256649653,21.9395,128.81,128.74,45.0]
[1719256649845,21.9395,128.81,128.76,7.7661]
[1719256650361,21.9395,128.81,128.77,45.0]
[1719256650672,6.3362,128.81,128.74,7.7672]
[1719256650970,15.7736,128.85,128.77,19.4138]
[1719256650971,22.1611,128.85,128.77,19.4138]
[1719256651174,22.1611,128.85,128.75,45.0]
[1719256651465,22.1611,128.85,128.75,52.7669]
[1719256651640,22.1611,128.85,128.75,45.0]
[1719256651848,22.1611,128.85,128.74,45.0]
[1719256652066,22.1611,128.85,128.74,52.7675]
[1719256652270,0.17,128.84,128.74,52.7675]
[1719256652454,0.17,128.84,128.74,45.0]
[1719256652656,0.34,128.84,128.74,45.0]
[1719256653542,0.34,128.84,128.75,7.7668]
[1719256653939,6.403,128.83,128.7,275.34122225]
[1719256654157,0.34,128.82,128.71,7.7693]
[1719256655058,0.17,128.82,128.73,7.7677]
[1719256655247,0.34,128.82,128.73,7.7677]
[1719256655442,0.34,128.82,128.68,30.31]
[1719256655443,6.476,128.8,128.61,31.685]
[1719256655646,6.476,128.72,128.49,100.0]
[1719256655952,30.65,128.79,128.55,23.26]
[1719256655953,6.646,128.71,128.55,23.26]
[1719256656156,0.17,128.7,128.54,30.31]
[1719256656353,0.34,128.7,128.54,29.31]
[1719256656555,0.34,128.7,128.58,7.7766]
[1719256656768,0.34,128.7,128.59,7.7765]
[1719256656944,15.9892,128.7,128.59,7.7765]
[1719256657142,15.9892,128.7,128.57,19.4445]
[1719256657577,15.9892,128.7,128.58,7.7767]
[1719256657758,15.9892,128.7,128.59,7.7766]
[1719256658148,23.7593,128.7,128.57,19.4445]
[1719256658383,15.9892,128.7,128.5,43.04462025]
[1719256658559,45.0,128.69,128.54,19.4484]
[1719256658870,0.34,128.68,128.53,30.31]
[1719256659051,0.34,128.68,128.5,43.04462025]
[1719256659052,0.17,128.68,128.54,10.0]
[1719256659255,15.6492,128.7,128.57,30.31]
[1719256659878,15.6492,128.7,128.6,7.7759]
[1719256660050,15.6492,128.7,128.59,27.2172]
[1719256660374,15.6492,128.7,128.6,45.0]
[1719256660677,15.6492,128.7,128.61,27.2133]
[1719256660977,6.476,128.71,128.64,19.434]
[1719256661454,6.476,128.71,128.61,19.438]
[1719256661655,6.476,128.71,128.62,45.0]
[1719256662450,14.2454,128.71,128.59,38.086]
[1719256662651,6.476,128.71,128.59,30.31]
[1719256662956,14.2455,128.71,128.6,45.0]
[1719256663162,0.34,128.7,128.6,45.0]
[1719256663580,0.34,128.7,128.6,52.7759]
[1719256663766,0.34,128.7,128.6,45.0]
[1719256663969,0.34,128.7,128.59,30.31]
[1719256664282,7.7713,128.68,128.56,19.4454]
[1719256664483,0.34,128.67,128.56,19.4454]
[1719256664788,0.34,128.67,128.56,27.2238]
[1719256665075,0.34,128.67,128.57,7.7777]
[1719256665381,0.17,128.67,128.58,7.7768]
[1719256665875,0.17,128.67,128.57,7.7777]
[1719256666054,15.1287,128.67,128.57,7.7777]
[1719256666253,15.1287,128.67,128.56,23.26]
[1719256666467,15.1287,128.67,128.6,7.7754]
[1719256666776,15.1287,128.67,128.61,45.0]
[1719256666957,6.476,128.71,128.61,52.7753]
[1719256667158,6.476,128.71,128.61,45.0]
[1719256668156,0.17,128.7,128.61,45.0]
[1719256668354,0.34,128.7,128.61,45.0]
[1719256669665,0.34,128.7,128.61,52.7754]
[1719256669862,3.8996,128.68,128.53,23.3063]
[1719256670062,3.8996,128.69,128.53,31.086]
[1719256670276,7.7747,128.63,128.53,23.3063]
[1719256670452,0.17,128.67,128.53,23.3063]
[1719256670453,3.8996,128.6,128.53,23.3063]
[1719256670659,3.8996,128.6,128.5,7.7815]
[1719256670979,3.8996,128.65,128.51,23.26]
[1719256671193,30.31,128.72,128.48,15.20040357]
[1719256671478,7.774,128.64,128.48,23.26]
[1719256671662,7.7721,128.67,128.55,7.7785]
[1719256671872,7.7726,128.66,128.49,30.31]
[1719256672174,7.7722,128.67,128.54,19.4488]
[1719256672352,7.7696,128.71,128.58,19.4426]
[1719256672552,23.3063,128.75,128.58,19.4426]
[1719256672767,7.7695,128.71,128.58,19.4426]
[1719256672966,7.7695,128.71,128.58,27.2197]
[1719256673167,7.7688,128.72,128.58,19.4426]
[1719256673351,30.46848131,128.75,128.6,19.4397]
[1719256673555,7.7683,128.73,128.6,27.2151]
[1719256673857,7.769,128.72,128.6,27.2151]
[1719256674076,30.46848131,128.75,128.6,19.4397]
[1719256674351,7.7688,128.72,128.6,19.4397]
[1719256674555,7.7695,128.71,128.6,19.4397]
[1719256674978,7.7695,128.71,128.58,7.7771]
[1719256675291,7.7689,128.72,128.59,7.7764]
[1719256675490,7.7689,128.72,128.6,7.7759]
[1719256675681,45.34,128.71,128.59,19.441]
[1719256675885,45.34,128.71,128.6,7.7758]
[1719256676082,0.34,128.71,128.6,7.7758]
[1719256676393,0.34,128.71,128.53,30.31]
[1719256676574,0.34,128.71,128.55,7.7788]
[1719256676779,19.7648,128.71,128.55,7.7788]
[1719256677077,7.7711,128.69,128.56,7.7783]
[1719256677384,7.7682,128.73,128.6,7.7759]
[1719256677581,7.7682,128.73,128.6,27.2148]
[1719256677793,7.7688,128.72,128.6,27.2148]
[1719256677994,7.7688,128.72,128.54,23.26]
[1719256678377,7.7694,128.71,128.55,0.17]
[1719256678571,7.7689,128.72,128.56,23.26]
[1719256678771,0.17,128.7,128.53,7.17771175]
[1719256678968,0.17,128.7,128.57,27.221]
[1719256678969,7.7708,128.69,128.57,27.221]
[1719256679231,45.17,128.68,128.57,19.4436]
[1719256679400,0.17,128.69,128.58,7.7768]
[1719256679569,0.17,128.7,128.59,7.7765]
[1719256679774,45.17,128.7,128.59,7.7765]
[1719256679989,0.17,128.69,128.6,7.7759]
[1719256680387,0.17,128.7,128.61,7.7753]
[1719256680592,7.7677,128.74,128.61,7.7753]
[1719256680873,7.16218131,128.75,128.59,19.4412]
[1719256681084,0.33725019,128.73,128.59,19.4412]
[1719256681289,8.10585019,128.73,128.6,7.7759]
[1719256681878,0.33725019,128.73,128.62,7.7748]
[1719256682102,11.82455324,128.74,128.61,19.438]
[1719256682281,14.89841439,128.76,128.63,7.774]
[1719256682282,7.7671,128.75,128.63,7.774]
[1719256682482,7.7671,128.75,128.61,42.698]
[1719256682483,14.89801439,128.76,128.61,42.698]
[1719256682782,12.16180343,128.77,128.62,45.17]
[1719256682991,12.16180343,128.77,128.65,19.4319]
[1719256683294,19.92750343,128.77,128.65,27.2047]
[1719256683506,12.16180343,128.77,128.66,7.7724]
[1719256684001,12.16180343,128.77,128.65,27.2048]
[1719256684177,7.7665,128.76,128.64,7.7732]
[1719256684372,12.16180343,128.77,128.65,7.7729]
[1719256684373,19.92770343,128.77,128.65,7.7729]
[1719256684577,7.21288635,128.79,128.64,23.26]
[1719256684806,0.34394215,128.81,128.68,7.7706]
[1719256685009,8.10744215,128.81,128.69,7.7705]
[1719256685208,7.7641,128.8,128.68,19.4275]
[1719256685384,7.7646,128.79,128.68,19.4275]
[1719256685903,0.34394215,128.81,128.65,45.17]
[1719256686204,7.7646,128.79,128.67,7.7714]
[1719256686787,7.7641,128.8,128.68,7.7711]
[1719256687314,45.17,128.79,128.68,7.7711]
[1719256687687,0.17,128.78,128.66,19.4304]
[1719256688002,7.7682,128.73,128.61,7.7749]
[1719256688516,45.17,128.72,128.6,19.4396]
[1719256688713,45.17,128.72,128.62,7.7747]
[1719256689001,0.17,128.74,128.62,19.4363]
[1719256689214,0.33725019,128.78,128.62,19.4363]
[1719256689215,0.33725019,128.78,128.62,23.26]
[1719256689517,0.17,128.77,128.64,19.4335]
[1719256689884,0.33725019,128.78,128.64,19.4335]
[1719256690104,8.10255019,128.78,128.66,7.7719]
[1719256690513,7.7642,128.8,128.68,7.7707]
[1719256691212,8.10744215,128.81,128.69,7.7705]
[1719256691435,8.10744215,128.81,128.65,23.26]
[1719256691436,0.34394215,128.81,128.65,23.26]
[1719256691730,0.34394215,128.81,128.63,55.3802]
[1719256691731,0.34394215,128.81,128.68,7.7711]
[1719256691897,7.7643,128.8,128.68,7.7711]
[1719256692399,0.34394215,128.81,128.7,7.7699]
[1719256692599,0.34394215,128.81,128.71,7.7693]
[1719256692799,15.86415019,128.82,128.71,7.7693]
[1719256693012,0.33725019,128.82,128.69,7.7702]
[1719256693215,8.10015019,128.82,128.7,7.7699]
[1719256693410,0.33725019,128.82,128.69,7.7702]
[1719256693604,7.7644,128.8,128.68,19.427]
[1719256693806,0.17,128.79,128.69,7.7704]
[1719256694009,8.104,128.8,128.68,27.1979]
[1719256694211,0.17,128.8,128.68,19.427]
[1719256694511,8.1036,128.81,128.69,7.7701]
[1719256694712,45.0,128.8,128.69,7.7701]
[1719256695025,0.17,128.79,128.65,25.6515]
[1719256695208,7.7666,128.76,128.64,7.7735]
[1719256695521,0.34,128.79,128.63,406.7411]
[1719256695522,0.17,128.75,128.63,7.7741]
[1719256695698,7.7699,128.71,128.6,6.4942]
[1719256695901,0.17,128.75,128.6,14.27]
[1719256696118,0.17,128.76,128.58,19.4419]
[1719256696307,7.7705,128.7,128.58,27.2186]
[1719256696605,53.1106,128.69,128.58,38.8551]
[1719256696934,45.34,128.69,128.58,27.2191]
[1719256697303,2.16752568,128.74,128.58,19.4419]
[1719256697730,7.7692,128.72,128.6,7.7755]
[1719256697940,53.1095,128.71,128.59,7.7764]
[1719256698102,0.17,128.7,128.59,7.7764]
[1719256698428,45.17,128.7,128.59,7.7764]
[1719256698633,0.17,128.69,128.59,7.7764]
[1719256699613,0.17,128.69,128.58,27.219]
[1719256699825,0.17,128.69,128.59,7.7766]
[1719256700510,0.17,128.69,128.58,27.2189]
[1719256700822,0.17,128.69,128.58,27.2191]
[1719256701008,7.7722,128.67,128.57,646.31712225]
[1719256701207,45.17,128.66,128.57,646.31712225]
[1719256701527,45.17,128.66,128.56,14.0101]
[1719256701720,0.17,128.66,128.56,14.0101]
[1719256702020,0.17,128.66,128.55,27.2251]
[1719256702229,0.17,128.66,128.56,7.7783]
[1719256702427,0.17,128.66,128.55,19.4463]
[1719256702723,0.34,128.66,128.55,27.2251]
[1719256704703,7.7708,128.69,128.58,7.7771]
[1719256704904,7.7701,128.7,128.58,7.777]
[1719256705101,7.7708,128.69,128.57,27.222]
[1719256706326,45.17,128.68,128.57,27.222]
[1719256706629,7.7698,128.71,128.57,19.4444]
[1719256706806,7.43828396,128.72,128.6,7.7759]
[1719256706807,7.7689,128.72,128.6,7.7759]
[1719256707435,7.12149286,128.73,128.56,19.4447]
[1719256707729,7.7715,128.68,128.56,27.2227]
[1719256708113,45.17,128.67,128.58,7.777]
[1719256708419,45.17,128.67,128.57,7.7777]
[1719256708727,0.17,128.67,128.57,7.7777]
[1719256709109,0.17,128.67,128.56,19.4447]
[1719256709311,7.7743,128.63,128.52,7.7808]
[1719256709629,45.17,128.62,128.51,13.8061]
[1719256709832,0.17,128.61,128.51,13.8061]
[1719256710213,0.17,128.61,128.51,6.025]
[1719256710438,0.17,128.61,128.51,13.8063]
[1719256711128,0.17,128.61,128.51,13.8064]
[1719256711329,0.17,128.61,128.5,19.4541]
[1719256711542,7.9455,128.61,128.5,27.236]
[1719256711844,45.17,128.6,128.5,27.236]
[1719256712037,0.17,128.59,128.5,27.236]
[1719256712334,10.33152794,128.66,128.51,7.7812]
[1719256712643,0.17,128.65,128.51,7.7813]
[1719256712938,7.7746,128.63,128.5,19.4541]
[1719256713129,45.34,128.62,128.51,7.7813]
[1719256713313,45.34,128.62,128.52,7.7807]
[1719256713514,45.34,128.62,128.51,7.7813]
[1719256713713,7.7759,128.61,128.49,24.3591]
[1719256713930,45.34,128.6,128.49,24.3591]
[1719256714643,45.34,128.6,128.5,7.7818]
[1719256714817,0.17,128.6,128.49,36.0331]
[1719256715150,0.34,128.6,128.49,36.0331]
[1719256715443,0.34,128.6,128.49,27.2391]
[1719256716234,9.94222568,128.63,128.51,7.781]
[1719256716766,7.7749,128.62,128.51,7.781]
[1719256717240,2.16752568,128.63,128.52,7.7804]
[1719256717431,9.94182568,128.63,128.51,27.2345]
[1719256717734,0.17,128.62,128.52,7.7808]
[1719256717935,1.08710882,128.64,128.54,7.7796]
[1719256718434,2.16752568,128.67,128.57,7.7774]
[1719256718740,1.08710882,128.69,128.58,7.7772]
[1719256718934,8.85790882,128.69,128.57,27.222]
[1719256719634,3.2546345,128.69,128.58,7.7771]
[1719256719841,3.2546345,128.69,128.59,19.4409]
[1719256720218,3.2546345,128.69,128.59,27.2174]
[1719256720917,30.31,128.76,128.59,19.4409]
[1719256721224,7.7698,128.71,128.59,27.2171]
[1719256721839,3.2546345,128.72,128.59,19.4409]
[1719256722029,7.77,128.7,128.59,19.4409]
[1719256722343,7.7696,128.71,128.59,27.2175]
[1719256722729,3.2546345,128.72,128.59,19.4409]
[1719256723043,0.17,128.71,128.59,19.4409]
[1719256723346,0.34,128.71,128.6,7.776]
[1719256724014,53.1094,128.71,128.59,27.2173]
[1719256724237,53.1094,128.71,128.6,7.7759]
[1719256724626,7.77,128.7,128.59,19.4409]
[1719256724851,45.34,128.69,128.59,19.4409]
[1719256725624,0.17,128.69,128.59,19.4409]
[1719256726020,0.34,128.69,128.59,27.2172]
[1719256726221,0.17,128.69,128.6,7.7754]
[1719256726520,1.65819464,128.74,128.63,7.774]
[1719256727127,1.65819464,128.74,128.63,27.2095]
[1719256728148,0.17,128.73,128.63,27.2095]
[1719256728320,1.65819464,128.74,128.63,19.4355]
[1719256728521,1.65819464,128.76,128.65,7.773]
[1719256728822,1.65819464,128.76,128.63,25.9595]
[1719256728823,7.7673,128.75,128.63,33.7333]
[1719256729042,9.42479464,128.76,128.63,25.9595]
[1719256729235,7.7671,128.75,128.64,7.7732]
[1719256729754,1.65819464,128.76,128.65,7.7729]
[1719256730048,1.65819464,128.77,128.67,7.7716]
[1719256730554,9.42209464,128.8,128.69,19.4263]
[1719256730764,18.60475898,128.8,128.69,19.4263]
[1719256730918,10.84085898,128.8,128.69,27.1968]
[1719256731118,18.60485898,128.8,128.68,7.771]
[1719256731335,7.7646,128.79,128.67,7.7716]
[1719256731796,7.7646,128.79,128.68,7.771]
[1719256731927,10.84085898,128.8,128.69,7.7704]
[1719256732126,45.34,128.79,128.69,7.7704]
[1719256732435,46.99819464,128.79,128.63,6.524]
[1719256732634,7.7671,128.75,128.64,19.4338]
[1719256732838,0.17,128.76,128.64,19.4338]
[1719256733223,56.01085898,128.79,128.64,23.26]
[1719256733456,7.7634,128.81,128.69,7.7703]
[1719256733825,18.03099144,128.82,128.7,19.4239]
[1719256734151,7.7634,128.81,128.7,19.4239]
[1719256734649,7.7646,128.79,128.67,27.1999]
[1719256734827,45.17,128.78,128.67,27.1999]
[1719256735332,45.17,128.78,128.68,7.7711]
[1719256736464,0.17,128.78,128.68,7.7711]
[1719256737150,0.17,128.78,128.67,19.4283]
[1719256737332,0.34,128.78,128.67,19.4283]
[1719256737531,8.1055,128.78,128.67,19.4283]
[1719256737755,52.7659,128.77,128.65,7.7728]
[1719256738049,0.17,128.76,128.66,7.7723]
[1719256739935,7.9364,128.76,128.65,7.7729]
[1719256740249,45.17,128.75,128.64,19.4334]
[1719256740451,0.17,128.74,128.64,19.4334]
[1719256740650,0.17,128.74,128.64,27.2069]
[1719256740951,7.7689,128.72,128.61,15.8719]
[1719256741131,45.17,128.71,128.61,7.7752]
[1719256741333,45.17,128.71,128.6,19.4398]
[1719256741653,0.17,128.73,128.62,7.7742]
[1719256741831,45.34,128.73,128.63,7.7741]
[1719256742032,0.34,128.73,128.63,7.7741]
[1719256742440,0.34,128.73,128.62,7.7746]
[1719256743145,8.1082,128.73,128.62,7.7746]
[1719256743345,45.0,128.72,128.62,7.7746]
[1719256743546,0.17,128.71,128.62,7.7746]
[1719256743858,0.34,128.71,128.6,7.7759]
[1719256745449,8.1094,128.71,128.6,7.7759]
[1719256745653,45.0,128.7,128.55,6.4459]
[1719256745863,0.34,128.69,128.59,7.7764]
[1719256746039,45.34,128.69,128.59,7.7764]
[1719256746848,7.10395666,128.74,128.63,7.7737]
[1719256747052,11.09038123,128.75,128.63,19.4354]
[1719256747053,3.32308123,128.75,128.63,19.4354]
[1719256747354,11.09018123,128.75,128.63,27.2094]
[1719256747647,11.09018123,128.75,128.63,19.4354]
[1719256748036,3.32308123,128.75,128.62,7.7747]
[1719256748338,7.9376,128.74,128.62,7.7747]
[1719256748647,45.0,128.73,128.62,7.7747]
[1719256748843,0.17,128.72,128.6,27.2147]
[1719256749155,0.17,128.72,128.6,19.4388]
[1719256749351,0.34,128.72,128.6,27.2147]
[1719256749554,0.34,128.72,128.57,19.4433]
[1719256749860,7.7704,128.7,128.58,7.7768]
[1719256750045,7.7719,128.67,128.56,7.7783]
[1719256750368,45.17,128.66,128.57,7.7777]
[1719256750568,8.22305184,128.69,128.58,19.443]
[1719256750869,7.7737,128.64,128.53,19.4499]
[1719256751060,45.17,128.63,128.52,7.7807]
[1719256751256,45.17,128.63,128.51,19.4433]
[1719256751451,53.1146,128.63,128.51,27.2246]
[1719256752050,7.7748,128.62,128.51,19.4433]
[1719256752366,53.1155,128.61,128.51,19.4433]
[1719256752550,45.17,128.61,128.51,19.4433]
[1719256752867,0.17,128.6,128.51,19.4433]
[1719256753163,7.9465,128.6,128.51,19.4433]
[1719256753353,52.9466,128.59,128.51,19.4433]
[1719256753549,0.17,128.58,128.51,19.4433]
[1719256754780,7.7788,128.56,128.51,19.4433]
[1719256754947,0.34,128.55,128.51,19.4433]
[1719256755272,0.17,128.56,128.46,12.34305271]
[1719256755472,0.17,128.56,128.46,4.55895271]
[1719256755648,0.34,128.56,128.46,4.55895271]
[1719256755853,45.34,128.56,128.46,4.55895271]
[1719256756460,7.7792,128.55,128.46,4.55895271]
[1719256756668,45.34,128.54,128.46,4.55895271]
[1719256757353,45.17,128.54,128.46,12.34335271]
[1719256757565,45.17,128.54,128.46,4.55895271]
[1719256757766,0.17,128.53,128.46,4.55895271]
[1719256757963,45.17,128.54,128.46,4.55895271]
[1719256758163,9.70878096,128.59,128.46,4.55895271]
[1719256758351,7.9474,128.58,128.45,7.785]
[1719256758555,7.778,128.57,128.45,7.785]
[1719256758758,0.17,128.56,128.44,7.7855]
[1719256758970,7.9486,128.56,128.44,7.7855]
[1719256759177,7.779,128.55,128.43,27.2514]
[1719256759476,0.34,128.54,128.44,7.7856]
[1719256759694,7.9484,128.56,128.44,7.7856]
[1719256759695,0.17,128.53,128.44,7.7856]